bitfinex-derivatives/quotes_ETHF0:USTF0_20250403
["timestamp","ask_amount","ask_price","bid_price","bid_amount"]
[1743698931816,1.12428,1779.4,1779.3,5.11529]
[1743698932018,2.57038,1779.4,1779.3,1.13271957]
[1743698932229,6.49068,1779.4,1779.3,0.00842957]
[1743698932414,12.98168,1779.4,1779.3,0.00842957]
[1743698932613,1.12453,1779.1,1779.0,1.12451]
[1743698932814,3.2078,1779.2,1778.8,2.81165]
[1743698933122,1.4461,1779.0,1778.9,1.1246]
[1743698933323,2.57064,1779.0,1778.9,1.1246]
[1743698934019,1.1246,1778.9,1778.8,1.13304957]
[1743698934213,2.5707,1778.9,1778.8,1.13304957]
[1743698934526,2.5707,1778.9,1778.8,0.00842957]
[1743698934925,1.4461,1778.9,1778.8,1.13308957]
[1743698935319,1.4683,1779.1,1779.0,1.12454]
[1743698935522,4.6769,1779.1,1779.0,1.12454]
[1743698935726,1.4691,1779.1,1779.0,1.12454]
[1743698936129,1.4691,1779.1,1779.0,3.26004]
[1743698936620,0.7578,1779.3,1779.0,3.26004]
[1743698936621,0.7578,1779.3,1779.2,1.12441]
[1743698936815,2.2269,1779.3,1779.1,1.3905]
[1743698937021,3.35128,1779.3,1779.2,1.12441]
[1743698937222,2.2269,1779.3,1779.2,1.12441]
[1743698938022,1.4691,1779.3,1779.2,1.12441]
[1743698938228,1.4691,1779.3,1779.2,1.85281]
[1743698938532,0.7496,1779.5,1779.4,1.12428]
[1743698938835,2.2533,1779.5,1779.4,1.12428]
[1743698939019,2.2533,1779.5,1779.3,1.5243]
[1743698939325,1.5037,1779.5,1779.4,1.12428]
[1743698939824,2.62792,1779.5,1779.4,1.85538]
[1743698940221,1.5037,1779.5,1779.4,1.85538]
[1743698940419,0.00842957,1779.6,1779.5,1.12422]
[1743698940626,0.00842957,1779.6,1779.5,3.35082]
[1743698941329,0.00842957,1779.6,1779.5,44.15082]
[1743698941529,1.13258957,1779.6,1779.5,44.15082]
[1743698941728,1.13258957,1779.6,1779.5,40.8]
[1743698942128,1.88138957,1779.6,1779.5,41.92422]
[1743698942328,1.13258957,1779.6,1779.5,43.42382]
[1743698942732,0.00842957,1779.6,1779.5,43.42382]
[1743698943632,1.13258957,1779.6,1779.5,43.42382]
[1743698943823,0.00842957,1779.6,1779.5,43.42382]
[1743698944129,1.13258957,1779.6,1779.5,42.2996]
[1743698944329,1.13258957,1779.6,1779.5,40.8]
[1743698944635,1.12422,1779.5,1779.4,1.85535]
[1743698944832,3.39142,1779.5,1779.4,1.85535]
[1743698945127,3.39142,1779.5,1779.4,40.8]
[1743698945334,1.12435,1779.3,1779.2,5.97]
[1743698945531,1.12454,1779.0,1778.9,5.97]
[1743698945735,1.12451,1779.1,1779.0,1.1245]
[1743698945932,1.12454,1779.0,1778.9,41.92454]
[1743698946430,2.62951,1779.1,1779.0,1.12454]
[1743698946643,1.12454,1779.0,1778.9,43.33028]
[1743698946934,5.83734,1779.0,1778.9,40.8]
[1743698947135,5.83734,1779.0,1778.8,0.00842957]
[1743698947136,1.1246,1778.9,1778.8,0.00842957]
[1743698947334,3.2978,1778.9,1778.8,0.00842957]
[1743698947725,3.2978,1778.9,1778.8,40.80842957]
[1743698948139,1.4587,1778.9,1778.8,41.93308957]
[1743698948934,1.12447,1779.1,1779.0,1.12448]
[1743698949131,1.4587,1779.1,1779.0,1.12448]
[1743698949326,0.7452,1779.2,1779.1,1.12447]
[1743698949628,0.7452,1779.2,1778.9,4.26609]
[1743698949629,1.4587,1779.3,1779.2,1.12441]
[1743698950031,3.2078,1779.4,1779.3,1.12435]
[1743698950337,1.12438,1779.3,1779.1,2.2134]
[1743698950537,1.12438,1779.3,1779.2,2.58111]
[1743698950743,1.4406,1779.3,1779.2,2.58111]
[1743698951035,2.56495,1779.3,1779.2,2.58111]
[1743698951335,1.4406,1779.3,1779.2,2.58111]
[1743698951928,1.4368,1779.5,1779.3,1.12429]
[1743698952129,1.4406,1779.4,1779.3,2.58099]
[1743698952432,1.4406,1779.4,1779.3,1.4567]
[1743698952735,1.4406,1779.4,1779.1,5.97]
[1743698952736,1.12441,1779.2,1779.1,5.97]
[1743698953732,2.64951,1779.2,1779.1,5.97]
[1743698954133,5.14951,1779.2,1779.1,5.97]
[1743698954330,4.0251,1779.2,1779.1,5.97]
[1743698955030,4.0251,1779.2,1778.8,41.93306957]
[1743698955031,4.0251,1779.2,1778.9,1.12459]
[1743698955236,3.2078,1779.0,1778.8,40.80842957]
[1743698955436,1.5251,1778.9,1778.8,41.93308957]
[1743698955732,0.7373,1779.1,1778.9,1.1246]
[1743698955940,1.5251,1779.0,1778.9,1.1246]
[1743698956439,4.7329,1779.0,1778.9,1.1246]
[1743698956635,1.5251,1779.0,1778.9,1.1246]
[1743698956934,3.2078,1779.2,1779.1,1.12447]
[1743698957131,3.2078,1779.2,1779.0,1.12449]
[1743698957331,1.4389,1779.1,1779.0,1.12454]
[1743698958235,0.7373,1779.4,1779.3,1.12435]
[1743698958635,0.7373,1779.4,1779.2,1.12435]
[1743698958837,0.7373,1779.4,1779.3,1.12435]
[1743698959137,0.7373,1779.4,1779.2,1.12436]
[1743698959338,0.7373,1779.4,1779.3,1.12435]
[1743698960738,2.2457,1779.4,1779.3,1.12435]
[1743698961733,1.5084,1779.4,1779.3,1.12435]
[1743698961939,0.00842957,1779.6,1779.3,2.81085]
[1743698962137,0.00842957,1779.6,1779.5,1.12422]
[1743698962645,3.2078,1780.2,1780.1,1.12384]
[1743698962835,1.4682,1780.3,1780.2,1.12378]
[1743698963235,1.4682,1780.3,1780.2,41.92378]
[1743698963441,0.7235,1780.3,1780.2,41.92378]
[1743698964152,0.00842957,1780.4,1780.3,1.12372]
[1743698964449,0.00842957,1780.4,1780.3,5.74212]
[1743698964646,0.00842957,1780.4,1780.3,2.53432]
[1743698965336,0.00842957,1780.4,1780.3,5.74212]
[1743698965746,1.3839,1780.6,1780.5,1.12359]
[1743698965941,3.2078,1781.0,1780.9,1.12334]
[1743698966139,4.33112,1781.0,1780.8,1.12338]
[1743698966341,1.12338,1780.9,1780.7,1.12344]
[1743698966535,3.2078,1780.8,1780.7,1.12346]
[1743698966739,5.0755,1780.8,1780.6,1.12348]
[1743698966939,5.0755,1780.8,1780.7,1.12346]
[1743698966940,3.9521,1780.8,1780.7,1.12346]
[1743698967150,0.7443,1780.8,1780.7,1.12346]
[1743698967447,2.2143,1780.8,1780.7,1.12346]
[1743698968348,2.2143,1780.8,1780.6,1.12348]
[1743698969154,2.2143,1780.8,1780.5,4.7327]
[1743698969449,1.47,1780.8,1780.7,1.12346]
[1743698971642,1.47,1780.8,1780.5,4.7327]
[1743698971849,1.47,1780.8,1780.6,1.12347]
[1743698972045,0.00553941,1780.9,1780.7,2.53316]
[1743698972251,2.54871941,1780.9,1780.7,1.4097]
[1743698973147,1.42533941,1780.9,1780.7,1.4097]
[1743698973351,1.12365,1780.4,1780.3,5.97]
[1743698973547,1.12378,1780.2,1780.1,0.00842957]
[1743698974252,2.54358,1780.2,1780.1,0.00842957]
[1743698974445,5.04358,1780.2,1780.1,0.00842957]
[1743698980056,2.54358,1780.2,1780.1,0.00842957]
[1743698980947,5.04358,1780.2,1780.1,0.00842957]
[1743698982557,2.54358,1780.2,1780.1,0.00842957]
[1743698984653,1.12378,1780.2,1780.1,1.13222957]
[1743698984859,1.12378,1780.2,1780.1,0.00842957]
[1743698985063,1.12378,1780.2,1780.1,1.47972957]
[1743698985466,4.33158,1780.2,1780.1,0.00842957]
[1743698985763,1.12378,1780.2,1780.1,0.00842957]
[1743698986962,4.33158,1780.2,1780.1,0.00842957]
[1743698987659,5.73738,1780.2,1780.1,0.00842957]
[1743698990265,1.12409,1779.7,1779.6,47.89413]
[1743698990569,1.12416,1779.6,1779.5,2.6247]
[1743698991364,1.12414,1779.7,1779.6,1.12413]
[1743698991670,2.60758957,1779.7,1779.6,1.12416]
[1743698991961,1.12416,1779.6,1779.5,43.42466]
[1743698992767,1.12416,1779.6,1779.5,42.3005]
[1743698993064,1.48342957,1779.7,1779.4,1.88216957]
[1743698993065,1.12422,1779.5,1779.4,0.00842957]
[1743698993378,9.72522,1779.5,1779.4,0.00842957]
[1743698993562,9.72522,1779.5,1779.4,40.80842957]
[1743698993862,6.51742,1779.5,1779.4,40.80842957]
[1743698994065,9.72522,1779.5,1779.4,40.80842957]
[1743698994261,6.51742,1779.5,1779.4,40.80842957]
[1743698994463,9.72522,1779.5,1779.4,40.80842957]
[1743698995161,6.51742,1779.5,1779.4,40.80842957]
[1743698995766,9.72522,1779.5,1779.4,40.80842957]
[1743698996064,3.21622957,1779.7,1779.4,40.80842957]
[1743698996266,1.12418,1779.6,1779.5,2.59238]
[1743698996455,1.12416,1779.6,1779.5,2.59237]
[1743698997161,1.13256957,1779.7,1779.6,1.12416]
[1743698997470,1.12387,1780.1,1779.7,2.8101]
[1743698997672,4.3316,1780.2,1779.8,7.48595]
[1743698997967,7.899,1780.4,1780.1,1.1238]
[1743698998168,1.12372,1780.3,1780.2,1.4682]
[1743698998370,1.12372,1780.3,1780.2,2.59198]
[1743698998868,5.41983941,1780.4,1780.3,1.12372]
[1743698998869,1.50883941,1780.4,1780.3,1.12372]
[1743698999162,0.00553941,1780.4,1780.3,1.12372]
[1743698999370,0.00553941,1780.4,1780.3,1.88052]
[1743699000257,0.00553941,1780.4,1780.2,1.4682]
[1743699000258,1.12372,1780.3,1780.2,1.4682]
[1743699000462,2.63532,1780.3,1780.2,1.4682]
[1743699000662,2.63532,1780.3,1780.2,40.8]
[1743699000868,1.12379,1780.2,1780.0,1.4315]
[1743699001170,1.5116,1780.2,1780.1,1.12384]
[1743699001475,1.12375,1780.3,1780.1,41.9238]
[1743699001662,1.12375,1780.3,1780.2,1.4315]
[1743699001978,1.12372,1780.3,1780.2,2.55526]
[1743699002268,1.12372,1780.3,1780.2,2.55528]
[1743699002664,4.74873941,1780.4,1780.3,1.12372]
[1743699002665,3.21333941,1780.4,1780.3,1.12372]
[1743699003167,0.00553941,1780.4,1780.3,0.7656]
[1743699003466,0.00553941,1780.4,1780.3,1.88932]
[1743699003868,0.00553941,1780.4,1780.3,4.38932]
[1743699004166,1.12372,1780.3,1780.2,2.55527]
[1743699004367,1.54093941,1780.4,1780.2,2.55527]
[1743699004570,1.54093941,1780.4,1780.3,1.12372]
[1743699004779,2.66458941,1780.4,1780.3,1.12372]
[1743699005066,4.35019941,1780.4,1780.0,0.7547]
[1743699005269,1.12384,1780.1,1780.0,0.7547]
[1743699005465,7.9188,1780.3,1780.0,0.7547]
[1743699005661,6.1164,1780.3,1780.0,44.18436]
[1743699005857,12.13351,1780.3,1780.0,44.18436]
[1743699006063,9.3242,1780.3,1780.1,1.12378]
[1743699006257,9.3242,1780.3,1780.0,2.2605]
[1743699006467,1.12384,1780.1,1780.0,44.18438]
[1743699006667,9.3242,1780.3,1780.0,44.18437]
[1743699006868,1.12384,1780.1,1780.0,44.18437]
[1743699007074,1.12381,1780.2,1780.1,1.12382]
[1743699007367,1.12379,1780.2,1780.1,1.12379]
[1743699007570,2.52919,1780.2,1780.1,1.12379]
[1743699007870,1.4054,1780.2,1780.0,43.0605]
[1743699008073,2.52921,1780.2,1780.1,1.12384]
[1743699008259,1.4054,1780.2,1780.0,43.0605]
[1743699008583,2.52924,1780.2,1780.1,1.12384]
[1743699008870,1.12384,1780.1,1780.0,44.18435]
[1743699009062,1.12384,1780.1,1780.0,40.8]
[1743699009472,1.12384,1780.1,1780.0,42.3089]
[1743699009668,2.54864,1780.1,1780.0,42.3089]
[1743699010071,2.54864,1780.1,1780.0,43.43281]
[1743699010568,0.00553941,1780.4,1780.3,1.12372]
[1743699011770,0.00553941,1780.4,1780.3,1.85652]
[1743699012571,0.00553941,1780.4,1780.3,2.57422]
[1743699012966,0.00553941,1780.4,1780.3,3.96382]
[1743699013870,0.00553941,1780.4,1780.3,7.94982]
[1743699014370,4.33129,1780.7,1780.6,1.12353]
[1743699014571,4.33126,1780.7,1780.6,1.12353]
[1743699014765,1.12353,1780.6,1780.5,2.60485]
[1743699014964,1.12365,1780.4,1780.3,3.28329957]
[1743699015363,1.12365,1780.4,1780.3,3.64091957]
[1743699015569,7.53251,1780.5,1780.2,0.00842957]
[1743699015769,1.12372,1780.3,1780.2,1.13216957]
[1743699015970,1.12372,1780.3,1780.2,0.00842957]
[1743699016363,2.63932,1780.3,1780.2,0.00842957]
[1743699017167,1.5156,1780.3,1780.2,1.13220957]
[1743699017367,1.5156,1780.3,1780.2,2.54650957]
[1743699017771,2.63932,1780.3,1780.2,2.54650957]
[1743699018470,1.84225,1780.4,1780.3,1.12372]
[1743699018667,3.28595,1780.4,1780.3,1.12372]
[1743699018876,1.12372,1780.3,1780.2,0.00842957]
[1743699019175,5.77522,1780.3,1780.2,0.00842957]
[1743699020365,6.46682,1780.3,1780.2,0.00842957]
[1743699020679,1.12409,1779.7,1779.6,5.97]
[1743699020970,1.12432,1779.4,1779.2,1.12435]
[1743699021173,1.12435,1779.3,1779.2,40.8]
[1743699021365,1.12435,1779.3,1779.1,4.00242]
[1743699021578,1.4899,1779.2,1779.1,4.00242]
[1743699021767,0.00842957,1779.4,1779.3,1.12435]
[1743699022177,2.81918957,1779.4,1779.0,1.13294957]
[1743699022368,1.12447,1779.1,1779.0,0.00842957]
[1743699022570,1.1247,1778.8,1778.6,1.12476]
[1743699022775,1.4899,1778.7,1778.6,2.54806]
[1743699023473,1.4899,1778.7,1778.6,42.2233]
[1743699023674,1.4899,1778.7,1778.6,43.34809]
[1743699023878,1.12462,1778.9,1778.6,42.2233]
[1743699024080,2.58702,1778.9,1778.7,1.4985]
[1743699024380,5.05741,1779.1,1778.9,1.12457]
[1743699024677,1.12464,1778.9,1778.7,2.62318]
[1743699024974,1.12466,1778.8,1778.7,1.12473]
[1743699025174,1.12466,1778.8,1778.6,40.8]
[1743699025366,1.12466,1778.8,1778.6,41.92474]
[1743699025571,1.4624,1778.7,1778.6,41.92474]
[1743699025977,2.58713,1778.7,1778.6,41.92474]
[1743699026172,1.4624,1778.7,1778.6,41.92474]
[1743699026674,2.58713,1778.7,1778.6,40.8]
[1743699026874,1.4624,1778.7,1778.6,40.8]
[1743699027079,2.58713,1778.7,1778.6,41.92479]
[1743699027273,1.4624,1778.7,1778.6,41.92479]
[1743699027475,2.58713,1778.7,1778.6,40.8]
[1743699028482,1.12479,1778.6,1778.5,0.00842957]
[1743699028778,3.32989,1778.6,1778.5,0.00842957]
[1743699030675,3.32989,1778.6,1778.5,40.80842957]
[1743699034070,1.12504,1778.2,1778.1,0.7668]
[1743699034388,3.2078,1778.2,1777.8,0.7382]
[1743699034678,0.7341,1778.5,1777.4,6.02159]
[1743699034679,1.12542,1777.6,1777.5,1.5055]
[1743699034979,1.12542,1777.6,1777.5,0.7673]
[1743699035182,1.12542,1777.6,1777.5,41.5673]
[1743699035379,1.12542,1777.6,1777.5,40.8]
[1743699035683,2.62702,1777.6,1777.5,40.8]
[1743699035880,1.12549,1777.5,1777.4,0.00842957]
[1743699036085,4.31541,1777.5,1777.1,7.09574]
[1743699036286,1.12565,1777.3,1777.1,1.4813]
[1743699036589,1.12561,1777.3,1777.2,1.4813]
[1743699036781,2.62721,1777.3,1777.2,1.4813]
[1743699037289,1.12568,1777.2,1777.1,0.00842957]
[1743699037478,2.62728,1777.2,1777.1,0.00842957]
[1743699037678,5.83508,1777.2,1777.1,0.00842957]
[1743699038284,8.33508,1777.2,1777.1,0.00842957]
[1743699039293,5.83508,1777.2,1777.1,0.00842957]
[1743699041482,1.12587,1776.9,1776.8,40.8]
[1743699042189,2.63967,1776.9,1776.8,40.8]
[1743699043691,2.63967,1776.9,1776.8,42.3054]
[1743699044893,1.5138,1776.9,1776.8,42.3054]
[1743699045086,1.12587,1776.9,1776.8,40.8]
[1743699045393,1.12593,1776.8,1776.7,0.00842957]
[1743699045694,4.33373,1776.8,1776.7,0.00842957]
[1743699046794,1.12593,1776.8,1776.7,0.00842957]
[1743699046994,1.12593,1776.8,1776.7,1.50652957]
[1743699047592,1.5098,1776.9,1776.7,2.63249957]
[1743699047793,3.2078,1777.0,1776.9,1.12587]
[1743699048189,1.12575,1777.1,1776.9,1.12582]
[1743699048390,8.32551,1777.2,1777.0,41.92576]
[1743699048692,4.33351,1777.2,1777.1,1.5348]
[1743699048888,1.12557,1777.4,1777.3,1.12561]
[1743699049190,1.12564,1777.3,1777.1,2.66049]
[1743699049391,1.12561,1777.3,1777.2,1.5348]
[1743699049592,1.1256,1777.4,1777.2,1.5348]
[1743699049795,1.12561,1777.3,1777.2,1.5348]
[1743699049997,1.12574,1777.1,1777.0,40.8]
[1743699050199,1.12574,1777.1,1777.0,42.3348]
[1743699050395,1.4425,1777.2,1777.0,43.4606]
[1743699050594,6.80593,1777.4,1777.1,1.12574]
[1743699050595,3.992,1777.4,1777.1,1.12574]
[1743699050798,1.12557,1777.4,1777.3,1.1256]
[1743699051100,1.12556,1777.4,1777.3,1.12559]
[1743699051301,1.12561,1777.3,1777.2,2.54363]
[1743699051499,1.12561,1777.3,1777.2,1.418]
[1743699051691,3.2078,1777.5,1777.2,1.418]
[1743699051897,3.2078,1777.5,1777.4,1.12555]
[1743699052096,4.33329,1777.5,1777.4,1.12555]
[1743699052299,3.2078,1777.5,1777.4,1.12555]
[1743699052493,3.2078,1777.5,1777.4,2.54355]
[1743699052689,5.83313,1777.6,1777.5,1.12549]
[1743699052900,5.83313,1777.6,1777.5,1.418]
[1743699053097,2.62533,1777.6,1777.5,1.418]
[1743699054401,1.13383957,1777.7,1777.5,2.54349]
[1743699054600,1.12542,1777.6,1777.5,1.418]
[1743699055400,1.12542,1777.6,1777.5,2.54349]
[1743699055596,4.33322,1777.6,1777.5,1.418]
[1743699055803,3.2078,1777.6,1777.5,2.54349]
[1743699056695,0.00842957,1777.7,1777.6,1.12542]
[1743699058903,1.13378957,1777.7,1777.5,1.418]
[1743699059101,0.00842957,1777.7,1777.5,1.35769891]
[1743699059297,1.12542,1777.6,1777.5,1.35769891]
[1743699059599,1.12542,1777.6,1777.5,2.48318891]
[1743699059802,1.12549,1777.5,1777.4,0.7404]
[1743699059998,2.58259,1777.5,1777.4,0.7404]
[1743699060691,1.12555,1777.4,1777.3,5.97]
[1743699060892,2.58265,1777.4,1777.3,5.97]
[1743699061098,2.58265,1777.4,1777.3,1.12561]
[1743699061999,1.12568,1777.2,1777.1,10.30348]
[1743699062194,1.12568,1777.2,1777.1,4.33348]
[1743699062396,7.4788,1777.4,1777.0,40.8]
[1743699062698,1.4571,1777.4,1777.0,43.61446]
[1743699062900,3.991,1777.5,1777.2,6.02186]
[1743699063103,1.1255,1777.5,1777.4,1.12555]
[1743699063299,1.12549,1777.5,1777.4,1.12554]
[1743699063499,2.55189,1777.5,1777.4,1.12554]
[1743699063900,1.4264,1777.5,1777.4,1.12554]
[1743699064304,1.4264,1777.5,1777.4,2.61944]
[1743699064507,1.4264,1777.5,1777.0,46.42893]
[1743699064508,1.4264,1777.5,1777.0,40.8]
[1743699064703,1.12564,1777.3,1777.1,1.4939]
[1743699064914,1.12564,1777.3,1777.2,1.12568]
[1743699065103,1.12568,1777.2,1777.1,3.32922082]
[1743699065306,1.12562,1777.3,1777.2,1.12563]
[1743699065501,1.13380957,1777.7,1777.6,1.12542]
[1743699065701,1.1253,1777.8,1777.7,0.05187152]
[1743699066009,2.5506,1777.8,1777.7,0.05187152]
[1743699066211,1.12555,1777.4,1777.3,0.7263]
[1743699066609,8.83513,1777.6,1777.2,1.4466]
[1743699066801,1.12561,1777.3,1777.2,2.58068957]
[1743699067001,1.12561,1777.3,1777.2,2.58070957]
[1743699067500,1.12561,1777.3,1777.2,1.45502957]
[1743699068100,1.12561,1777.3,1777.2,0.00842957]
[1743699068307,1.86271,1777.3,1777.2,0.00842957]
[1743699068605,1.86271,1777.3,1777.2,0.00288059]
[1743699068606,5.78801,1777.3,1777.2,0.00288059]
[1743699071913,5.78801,1777.3,1777.2,5.9e-07]
[1743699072109,1.12587,1776.9,1776.8,40.8]
[1743699072318,3.2078,1776.9,1776.5,1.4868]
[1743699072616,1.12618,1776.4,1776.3,0.728]
[1743699072912,1.12618,1776.4,1776.3,41.528]
[1743699073118,1.421,1776.5,1776.3,42.23792793]
[1743699073315,1.42942957,1776.5,1776.4,1.12618]
[1743699073815,0.00842957,1776.5,1776.4,6.83398]
[1743699074013,0.00842957,1776.5,1776.4,7.56408]
[1743699074205,0.00842957,1776.5,1776.4,8.27372893]
[1743699075919,0.00842957,1776.5,1776.4,9.75882893]
[1743699077312,0.00842957,1776.5,1776.4,1.83582893]
[1743699077521,0.00842957,1776.5,1776.4,4.01492893]
[1743699077815,0.00842957,1776.5,1776.4,9.72272893]
[1743699078217,0.00842957,1776.5,1776.4,6.51492893]
[1743699078611,0.00842957,1776.5,1776.4,12.48492893]
[1743699078916,1.13454957,1776.5,1776.4,5.97]
[1743699079611,4.34234957,1776.5,1776.4,5.97]
[1743699080015,1.12618,1776.4,1776.3,40.8]
[1743699080218,2.65018,1776.4,1776.3,40.8]
[1743699081013,1.12625,1776.3,1776.2,0.00842957]
[1743699081226,1.4363,1776.3,1776.2,0.00842957]
[1743699081412,2.56255,1776.3,1776.2,0.00842957]
[1743699081714,5.77035,1776.3,1776.2,0.00842957]
[1743699082113,3.2078,1776.2,1774.9,0.09800374]
[1743699082317,3.2078,1775.1,1775.0,0.11267605]
[1743699082516,4.33481,1775.1,1775.0,40.91267605]
[1743699082718,6.83481,1775.1,1775.0,0.11267605]
[1743699083416,11.01681,1775.1,1775.0,0.11267605]
[1743699084419,8.51681,1775.1,1775.0,0.11267605]
[1743699084722,1.44472957,1775.2,1775.0,1.23974605]
[1743699084923,4.33485,1775.1,1774.9,0.00561972]
[1743699085224,2.66217,1775.0,1774.9,0.00561972]
[1743699085422,0.00842957,1775.2,1774.9,0.00561972]
[1743699085919,1.54352957,1775.2,1775.0,1.12705]
[1743699086118,1.54352957,1775.2,1775.1,1.12701]
[1743699086324,0.00842957,1775.2,1775.1,3.62701]
[1743699086825,4.3346,1775.5,1775.3,1.12687]
[1743699087021,4.33455,1775.5,1775.3,1.12685]
[1743699087226,4.33455,1775.5,1775.4,1.4856]
[1743699088725,1.12688,1775.3,1775.2,5.3189]
[1743699088926,1.12687,1775.4,1775.2,6.8045]
[1743699089327,1.12682,1775.4,1775.2,5.6776]
[1743699089524,4.5928,1775.5,1775.2,5.6776]
[1743699089828,3.2078,1775.5,1775.4,1.12682]
[1743699090029,0.00842957,1775.6,1775.5,1.12675]
[1743699090422,0.00842957,1775.6,1775.5,3.62675]
[1743699090740,3.2078,1775.9,1775.8,1.12656]
[1743699090923,1.4059,1776.0,1775.9,1.1265]
[1743699091428,4.33422,1776.1,1775.8,4.191]
[1743699091623,2.53223,1776.2,1776.1,1.12637]
[1743699091824,4.33419,1776.1,1776.0,1.12644]
[1743699092019,3.2078,1776.1,1776.0,2.58596957]
[1743699092230,4.33417,1776.1,1776.0,2.58596957]
[1743699092534,3.2078,1776.1,1776.0,2.58596957]
[1743699092733,1.4059,1776.2,1776.1,1.12637]
[1743699093028,0.00842957,1776.3,1776.2,1.12631]
[1743699093421,0.00842957,1776.3,1776.2,41.92631]
[1743699093623,0.00842957,1776.3,1776.2,44.42631]
[1743699095428,0.00842957,1776.3,1776.2,48.60031]
[1743699096327,0.00842957,1776.3,1776.2,40.8]
[1743699096533,0.00842957,1776.3,1776.0,8.12782957]
[1743699096534,1.12635,1776.2,1776.0,5.97842957]
[1743699096731,4.33417,1776.1,1776.0,0.00842957]
[1743699098332,3.2078,1776.1,1776.0,0.00842957]
[1743699098529,3.2078,1776.1,1776.0,1.13486957]
[1743699099230,4.33417,1776.1,1776.0,0.00842957]
[1743699100432,3.2078,1776.1,1776.0,1.13486957]
[1743699101734,3.2078,1776.1,1776.0,0.00842957]
[1743699102133,4.33417,1776.1,1776.0,0.00842957]
[1743699104938,3.21622957,1776.3,1776.2,1.12631]
[1743699105133,0.00842957,1776.3,1776.2,1.12631]
[1743699105532,3.21622957,1776.3,1776.0,5.97842957]
[1743699105734,1.12637,1776.1,1776.0,1.13483957]
[1743699106237,3.96212957,1776.3,1776.0,1.13481957]
[1743699106430,1.12637,1776.1,1776.0,0.00842957]
[1743699106627,4.33417,1776.1,1776.0,0.00842957]
[1743699106829,4.33417,1776.1,1776.0,1.13486957]
[1743699107140,3.2078,1776.1,1776.0,1.13486957]
[1743699107347,4.33417,1776.1,1776.0,1.13486957]
[1743699107638,3.2078,1776.1,1776.0,1.13486957]
[1743699107836,4.33417,1776.1,1776.0,1.13486957]
[1743699108341,3.21622957,1776.3,1776.0,1.13486957]
[1743699108540,4.34250957,1776.3,1776.2,1.12631]
[1743699108928,3.21622957,1776.3,1776.1,1.492]
[1743699109132,4.34251957,1776.3,1776.2,1.12631]
[1743699109329,3.21622957,1776.3,1776.2,1.12631]
[1743699109537,0.00842957,1776.3,1776.2,1.12631]
[1743699110136,0.00842957,1776.3,1776.2,1.85031]
[1743699110441,1.12619,1776.5,1776.4,1.12614]
[1743699110643,4.33399,1776.5,1776.4,1.12614]
[1743699111735,1.13452957,1776.6,1776.5,1.12612]
[1743699112141,1.12617,1776.5,1776.4,1.12613]
[1743699112337,4.33397,1776.5,1776.4,1.12613]
[1743699112536,1.12618,1776.4,1776.3,3.29338]
[1743699112743,3.2078,1776.5,1776.4,1.12618]
[1743699112947,3.2078,1776.5,1776.3,1.86]
[1743699113242,1.12636,1776.2,1776.1,1.12635]
[1743699113445,6.02344,1776.3,1776.0,5.97842957]
[1743699113636,1.12637,1776.2,1776.1,1.12635]
[1743699113835,1.12637,1776.2,1776.1,1.12634]
[1743699114542,1.12637,1776.1,1776.0,1.13484957]
[1743699114740,4.33417,1776.1,1776.0,0.00842957]
[1743699114942,4.33417,1776.1,1776.0,1.13486957]
[1743699115343,3.2078,1776.1,1776.0,1.13486957]
[1743699115639,3.9693,1776.3,1776.2,1.12631]
[1743699115942,6.5408,1776.3,1776.2,1.12631]
[1743699116341,5.4145,1776.3,1776.2,1.12631]
[1743699116745,4.653,1776.3,1776.2,1.12631]
[1743699117334,5.77925,1776.3,1776.2,1.12631]
[1743699117946,1.12631,1776.2,1776.1,1.12632]
[1743699118243,1.12637,1776.1,1776.0,1.13481957]
[1743699118548,4.33417,1776.1,1776.0,1.13481957]
[1743699118848,3.2078,1776.1,1776.0,1.13481957]
[1743699119148,8.494,1776.4,1776.3,1.12625]
[1743699119348,4.334,1776.4,1776.3,1.12625]
[1743699119546,1.12629,1776.3,1776.2,1.12627]
[1743699119743,3.2078,1776.4,1776.0,2.82440957]
[1743699119948,1.12637,1776.1,1776.0,1.13482957]
[1743699120151,1.12637,1776.1,1776.0,1.13486957]
[1743699120344,2.60477,1776.1,1776.0,1.13486957]
[1743699120850,1.4784,1776.1,1776.0,1.13486957]
[1743699122548,1.12637,1776.2,1776.1,1.12634]
[1743699122748,1.12637,1776.1,1776.0,0.00842957]
[1743699122951,4.33417,1776.1,1776.0,0.00842957]
[1743699123556,5.79357,1776.1,1776.0,0.00842957]
[1743699125246,1.4594,1776.1,1776.0,1.13486957]
[1743699125951,1.4594,1776.1,1776.0,1.83676957]
[1743699126151,4.33411,1776.3,1776.2,1.12631]
[1743699126451,5.81471,1776.3,1776.2,1.12631]
[1743699126641,5.81465,1776.3,1776.2,1.12631]
[1743699127542,5.81465,1776.3,1776.1,1.4867]
[1743699127746,1.12637,1776.1,1776.0,1.83669957]
[1743699128052,3.2078,1776.3,1776.2,1.12631]
[1743699128542,3.2078,1776.5,1776.3,1.12625]
[1743699128746,3.2078,1776.5,1776.4,2.61288]
[1743699129154,3.2078,1776.5,1776.4,43.41288]
[1743699130657,1.48902957,1776.6,1776.5,1.12612]
[1743699130854,1.48902957,1776.6,1776.5,3.25562]
[1743699131357,2.61508957,1776.6,1776.5,44.05562]
[1743699131547,1.48902957,1776.6,1776.5,44.05562]
[1743699132658,0.00842957,1776.6,1776.5,46.55562]
[1743699133756,3.2078,1776.8,1776.7,1.12599]
[1743699133956,3.14749891,1776.8,1776.7,1.12599]
[1743699134154,3.14749891,1776.8,1776.6,1.12599]
[1743699134350,0.06030109,1776.6,1776.4,7.09613]